[Event "Late-Titled-Tuesday-Blitz-April-30-2024"]
[Site "Chess.com"]
[Date "2024.04.30"]
[Round "7"]
[White "DeArron_Fox"]
[Black "WindWhistler11"]
[Result "0-1"]
[WhiteElo "2505"]
[BlackElo "2563"]
[TimeControl "180+1"]
[EndTime "15:17:47 PDT"]
[Termination "WindWhistler11 won on time"]

1. d4 {[%clk 0:02:57.5]} 1... Nf6 {[%clk 0:02:47.2]} 2. c4 {[%clk 0:02:54.1]}
2... e6 {[%clk 0:02:47.5]} 3. Nf3 {[%clk 0:02:45.9]} 3... c5 {[%clk 0:02:48.4]}
4. d5 {[%clk 0:02:45.1]} 4... exd5 {[%clk 0:02:46.7]} 5. cxd5 {[%clk 0:02:46]}
5... Bd6 {[%clk 0:02:46.9]} 6. Nc3 {[%clk 0:02:46.3]} 6... O-O {[%clk
0:02:47.4]} 7. e4 {[%clk 0:02:45.8]} 7... Re8 {[%clk 0:02:47.7]} 8. Bd3 {[%clk
0:02:40.8]} 8... Bc7 {[%clk 0:02:47.6]} 9. O-O {[%clk 0:02:38.1]} 9... d6 {[%clk
0:02:48]} 10. h3 {[%clk 0:02:33.6]} 10... a6 {[%clk 0:02:46.2]} 11. a4 {[%clk
0:02:32.7]} 11... Nbd7 {[%clk 0:02:47]} 12. Re1 {[%clk 0:02:26.4]} 12... Nf8
{[%clk 0:02:45.4]} 13. Bf4 {[%clk 0:02:25]} 13... Ng6 {[%clk 0:02:40.7]} 14. Bh2
{[%clk 0:02:25.1]} 14... Rb8 {[%clk 0:02:38.2]} 15. Rb1 {[%clk 0:01:43]} 15...
Ba5 {[%clk 0:02:01.6]} 16. Nd2 {[%clk 0:01:27.1]} 16... Ne5 {[%clk 0:01:23.6]}
17. Bf1 {[%clk 0:01:26]} 17... Bxc3 {[%clk 0:01:03.1]} 18. bxc3 {[%clk
0:01:25.4]} 18... Qc7 {[%clk 0:00:55.2]} 19. Qc2 {[%clk 0:01:18.8]} 19... Bd7
{[%clk 0:00:52.3]} 20. f4 {[%clk 0:00:51.6]} 20... Ng6 {[%clk 0:00:50.4]} 21. c4
{[%clk 0:00:50.7]} 21... Nh5 {[%clk 0:00:46]} 22. e5 {[%clk 0:00:26.9]} 22...
Nhxf4 {[%clk 0:00:36]} 23. exd6 {[%clk 0:00:19.5]} 23... Qxd6 {[%clk 0:00:34.2]}
24. Ne4 {[%clk 0:00:15.8]} 24... Qe5 {[%clk 0:00:24.1]} 25. Qc3 {[%clk
0:00:07.5]} 25... Bf5 {[%clk 0:00:20.9]} 26. Qxe5 {[%clk 0:00:05.2]} 26... Rxe5
{[%clk 0:00:20.4]} 27. Nxc5 {[%clk 0:00:06.1]} 27... Bxb1 {[%clk 0:00:18.6]} 28.
Rxb1 {[%clk 0:00:04.4]} 28... Re3 {[%clk 0:00:09.5]} 29. d6 {[%clk 0:00:02.4]}
29... b6 {[%clk 0:00:08.4]} 30. d7 {[%clk 0:00:02.4]} 30... Rd8 {[%clk
0:00:08.2]} 31. Rxb6 {[%clk 0:00:02.8]} 31... Nf8 {[%clk 0:00:05.3]} 32. Rd6
{[%clk 0:00:02.8]} 32... N4e6 {[%clk 0:00:04.5]} 33. Nxe6 {[%clk 0:00:01.8]}
33... Rxe6 {[%clk 0:00:04.5]} 34. Rd3 {[%clk 0:00:01]} 34... Rxd7 {[%clk
0:00:04.7]} 35. Rxd7 {[%clk 0:00:00.9]} 35... Nxd7 {[%clk 0:00:05.6]} 36. Bd3
{[%clk 0:00:00.9]} 36... Rc6 {[%clk 0:00:06.3]} 37. Bf5 {[%clk 0:00:01.1]} 37...
Nb6 {[%clk 0:00:06]} 38. a5 {[%clk 0:00:00.9]} 38... Nxc4 {[%clk 0:00:06.2]} 39.
Be4 {[%clk 0:00:01.5]} 39... Rc5 {[%clk 0:00:06.4]} 0-1

[Event "Late-Titled-Tuesday-Blitz-April-30-2024"]
[Site "Chess.com"]
[Date "2024.04.30"]
[Round "7"]
[White "Casablanca"]
[Black "Langua_Chess"]
[Result "1-0"]
[WhiteElo "2631"]
[BlackElo "2438"]
[TimeControl "180+1"]
[EndTime "15:17:48 PDT"]
[Termination "Casablanca won on time"]

1. e4 {[%clk 0:02:54.6]} 1... c5 {[%clk 0:02:52.1]} 2. c3 {[%clk 0:02:50.2]}
2... g6 {[%clk 0:02:48.9]} 3. d4 {[%clk 0:02:48.5]} 3... d5 {[%clk 0:02:49.5]}
4. e5 {[%clk 0:02:45.6]} 4... Nc6 {[%clk 0:02:47.5]} 5. Nf3 {[%clk 0:02:42.8]}
5... Bg4 {[%clk 0:02:46.6]} 6. Bb5 {[%clk 0:02:43.1]} 6... Rc8 {[%clk
0:02:44.2]} 7. O-O {[%clk 0:02:41.9]} 7... Nh6 {[%clk 0:02:41.1]} 8. h3 {[%clk
0:02:40.8]} 8... Bxf3 {[%clk 0:02:40.5]} 9. Qxf3 {[%clk 0:02:41.7]} 9... cxd4
{[%clk 0:02:38.5]} 10. cxd4 {[%clk 0:02:42.3]} 10... Nf5 {[%clk 0:02:38.3]} 11.
Qd3 {[%clk 0:02:27.4]} 11... Qb6 {[%clk 0:02:23.9]} 12. Be3 {[%clk 0:02:27.4]}
12... Bh6 {[%clk 0:02:02.3]} 13. Bxh6 {[%clk 0:02:22.7]} 13... Nxh6 {[%clk
0:02:03.2]} 14. g4 {[%clk 0:02:20.5]} 14... O-O {[%clk 0:01:59.4]} 15. Bxc6
{[%clk 0:02:18]} 15... Rxc6 {[%clk 0:01:55]} 16. Nc3 {[%clk 0:02:18.1]} 16... e6
{[%clk 0:01:48.1]} 17. Na4 {[%clk 0:01:41.2]} 17... Qb4 {[%clk 0:01:45.2]} 18.
b3 {[%clk 0:01:40]} 18... Rfc8 {[%clk 0:01:38.3]} 19. a3 {[%clk 0:01:39.8]}
19... Qa5 {[%clk 0:01:34.2]} 20. Nc5 {[%clk 0:01:40]} 20... Qc7 {[%clk
0:01:23.8]} 21. Kg2 {[%clk 0:01:33.2]} 21... b6 {[%clk 0:01:20.1]} 22. Na6
{[%clk 0:01:33.4]} 22... Qe7 {[%clk 0:01:17]} 23. Qe3 {[%clk 0:01:02.4]} 23...
Qh4 {[%clk 0:01:09.3]} 24. Rac1 {[%clk 0:01:02.5]} 24... Nxg4 {[%clk 0:00:54.1]}
25. hxg4 {[%clk 0:01:02.7]} 25... Qxg4+ {[%clk 0:00:54.6]} 26. Kh2 {[%clk
0:01:03.3]} 26... Qh4+ {[%clk 0:00:27.3]} 27. Kg2 {[%clk 0:01:03.4]} 27... Rxc1
{[%clk 0:00:20]} 28. Rxc1 {[%clk 0:01:04.3]} 28... Rxc1 {[%clk 0:00:19.7]} 29.
Qxc1 {[%clk 0:01:05.2]} 29... Qxd4 {[%clk 0:00:19.7]} 30. Qe3 {[%clk 0:00:55.8]}
30... Qg4+ {[%clk 0:00:19.6]} 31. Kf1 {[%clk 0:00:54]} 31... Qd1+ {[%clk
0:00:11.6]} 32. Kg2 {[%clk 0:00:51.4]} 32... Qg4+ {[%clk 0:00:10]} 33. Qg3
{[%clk 0:00:49.3]} 33... Qe4+ {[%clk 0:00:09.3]} 34. Kh2 {[%clk 0:00:50]} 34...
h5 {[%clk 0:00:06.9]} 35. Nb4 {[%clk 0:00:28.6]} 35... h4 {[%clk 0:00:07.2]} 36.
Qe3 {[%clk 0:00:22.3]} 36... Qg4 {[%clk 0:00:03.7]} 37. Nd3 {[%clk 0:00:20.8]}
37... a5 {[%clk 0:00:03.1]} 38. a4 {[%clk 0:00:17.1]} 38... Qf5 {[%clk
0:00:03.2]} 39. Nf4 {[%clk 0:00:16.5]} 39... Kg7 {[%clk 0:00:02.8]} 40. Nh3
{[%clk 0:00:16.4]} 40... Qc2 {[%clk 0:00:02.1]} 41. Qf4 {[%clk 0:00:14.1]} 41...
Qxb3 {[%clk 0:00:01]} 42. Qf6+ {[%clk 0:00:13.5]} 42... Kg8 {[%clk 0:00:01.4]}
43. Qd8+ {[%clk 0:00:13.7]} 43... Kg7 {[%clk 0:00:01.1]} 44. Qxh4 {[%clk
0:00:14.6]} 44... Kg8 {[%clk 0:00:01.3]} 45. Ng5 {[%clk 0:00:13.9]} 1-0

[Event "Late-Titled-Tuesday-Blitz-April-30-2024"]
[Site "Chess.com"]
[Date "2024.04.30"]
[Round "7"]
[White "Kobalia"]
[Black "KuzubovYuriy"]
[Result "1/2-1/2"]
[WhiteElo "2798"]
[BlackElo "2971"]
[TimeControl "180+1"]
[EndTime "15:17:49 PDT"]
[Termination "Game drawn by repetition"]

1. e4 {[%clk 0:03:00.9]} 1... e6 {[%clk 0:03:00.4]} 2. d3 {[%clk 0:02:55.7]}
2... d5 {[%clk 0:02:58.2]} 3. Nd2 {[%clk 0:02:55.7]} 3... c5 {[%clk 0:02:55.1]}
4. Ngf3 {[%clk 0:02:55.8]} 4... Nc6 {[%clk 0:02:52]} 5. g3 {[%clk 0:02:55.8]}
5... Bd6 {[%clk 0:02:52.2]} 6. Bg2 {[%clk 0:02:55.9]} 6... Nge7 {[%clk
0:02:52.3]} 7. O-O {[%clk 0:02:55.9]} 7... O-O {[%clk 0:02:52.6]} 8. Re1 {[%clk
0:02:55.2]} 8... Bc7 {[%clk 0:02:50.2]} 9. c3 {[%clk 0:02:54.4]} 9... b6 {[%clk
0:02:47.8]} 10. exd5 {[%clk 0:02:54.1]} 10... Nxd5 {[%clk 0:02:43.7]} 11. Nb3
{[%clk 0:02:53.9]} 11... Bb7 {[%clk 0:02:30.4]} 12. d4 {[%clk 0:02:53.5]} 12...
cxd4 {[%clk 0:02:30.1]} 13. Nfxd4 {[%clk 0:02:53.7]} 13... Qc8 {[%clk
0:02:17.1]} 14. Nxc6 {[%clk 0:02:26.5]} 14... Bxc6 {[%clk 0:02:17.2]} 15. Nd4
{[%clk 0:02:26.6]} 15... Bb7 {[%clk 0:02:16.8]} 16. Qg4 {[%clk 0:02:23.6]} 16...
Nf6 {[%clk 0:02:06.3]} 17. Qe2 {[%clk 0:01:55.2]} 17... Bxg2 {[%clk 0:02:03.9]}
18. Kxg2 {[%clk 0:01:56.1]} 18... h6 {[%clk 0:01:53]} 19. Qf3 {[%clk 0:01:55.8]}
19... Nd5 {[%clk 0:01:39.8]} 20. c4 {[%clk 0:01:45.5]} 20... Ne7 {[%clk
0:01:37.8]} 21. b3 {[%clk 0:01:41.2]} 21... e5 {[%clk 0:01:15.3]} 22. Nc6 {[%clk
0:01:33.6]} 22... Nxc6 {[%clk 0:01:07.2]} 23. Qxc6 {[%clk 0:01:34.5]} 23... Bd8
{[%clk 0:01:03.6]} 24. Qxc8 {[%clk 0:01:23.7]} 24... Rxc8 {[%clk 0:01:04.5]} 25.
Ba3 {[%clk 0:01:23.2]} 25... Re8 {[%clk 0:01:04]} 26. Rad1 {[%clk 0:01:23.3]}
26... b5 {[%clk 0:00:42]} 27. cxb5 {[%clk 0:00:53.1]} 27... Rc2 {[%clk
0:00:40.9]} 28. Kf1 {[%clk 0:00:25.4]} 28... Rxa2 {[%clk 0:00:38.4]} 29. Bc5
{[%clk 0:00:25.2]} 29... f6 {[%clk 0:00:27.7]} 30. Ra1 {[%clk 0:00:24]} 30...
Rxa1 {[%clk 0:00:25.3]} 31. Rxa1 {[%clk 0:00:23.1]} 31... Bb6 {[%clk 0:00:26]}
32. Bxb6 {[%clk 0:00:22.2]} 32... axb6 {[%clk 0:00:26.4]} 33. Ra6 {[%clk
0:00:20.8]} 33... Re6 {[%clk 0:00:26.7]} 34. Ra7 {[%clk 0:00:20.2]} 34... h5
{[%clk 0:00:25.1]} 35. h4 {[%clk 0:00:19.5]} 35... Kf8 {[%clk 0:00:24.8]} 36.
Ke2 {[%clk 0:00:19.8]} 36... Rd6 {[%clk 0:00:24.7]} 37. Rb7 {[%clk 0:00:19.6]}
37... f5 {[%clk 0:00:24.1]} 38. Ke3 {[%clk 0:00:19.3]} 38... g6 {[%clk
0:00:24.3]} 39. Ke2 {[%clk 0:00:17.3]} 39... Ke8 {[%clk 0:00:24.5]} 40. Ke3
{[%clk 0:00:13]} 40... Kd8 {[%clk 0:00:24.8]} 41. Rg7 {[%clk 0:00:11.7]} 41...
Kc8 {[%clk 0:00:20.8]} 42. Ke2 {[%clk 0:00:10.9]} 42... e4 {[%clk 0:00:19.3]}
43. b4 {[%clk 0:00:10.1]} 43... Kd8 {[%clk 0:00:17.1]} 44. Ke3 {[%clk
0:00:10.3]} 44... Ke8 {[%clk 0:00:17.1]} 45. Ke2 {[%clk 0:00:10.3]} 45... Kf8
{[%clk 0:00:17.1]} 46. Rb7 {[%clk 0:00:10.3]} 46... Ke8 {[%clk 0:00:17.3]} 47.
Ke3 {[%clk 0:00:10.3]} 47... Rd3+ {[%clk 0:00:17.3]} 48. Ke2 {[%clk 0:00:10.3]}
48... Rd6 {[%clk 0:00:16.9]} 49. Ke3 {[%clk 0:00:10]} 49... Rd3+ {[%clk
0:00:17.3]} 50. Ke2 {[%clk 0:00:09.5]} 50... Rd6 {[%clk 0:00:17.8]} 1/2-1/2

[Event "Late-Titled-Tuesday-Blitz-April-30-2024"]
[Site "Chess.com"]
[Date "2024.04.30"]
[Round "7"]
[White "Msb2"]
[Black "BeanScreen"]
[Result "1-0"]
[WhiteElo "3022"]
[BlackElo "2686"]
[TimeControl "180+1"]
[EndTime "15:17:58 PDT"]
[Termination "Msb2 won by checkmate"]

1. d4 {[%clk 0:03:00.9]} 1... d5 {[%clk 0:03:00.1]} 2. c4 {[%clk 0:03:01.5]}
2... e6 {[%clk 0:03:00.6]} 3. Nc3 {[%clk 0:03:02.2]} 3... c5 {[%clk 0:03:00.4]}
4. cxd5 {[%clk 0:03:01.4]} 4... cxd4 {[%clk 0:03:00.7]} 5. Qa4+ {[%clk 0:03:01]}
5... Bd7 {[%clk 0:03:01]} 6. Qxd4 {[%clk 0:03:01.7]} 6... exd5 {[%clk
0:03:01.5]} 7. Qxd5 {[%clk 0:03:02.6]} 7... Nf6 {[%clk 0:03:01.3]} 8. Qd1 {[%clk
0:03:02.9]} 8... Bc5 {[%clk 0:03:01.3]} 9. e3 {[%clk 0:03:03.5]} 9... O-O {[%clk
0:03:01.3]} 10. Nf3 {[%clk 0:03:04.1]} 10... Qe7 {[%clk 0:03:01.5]} 11. Be2
{[%clk 0:03:04.7]} 11... Rd8 {[%clk 0:03:01.6]} 12. O-O {[%clk 0:03:05.4]} 12...
Nc6 {[%clk 0:03:01.6]} 13. a3 {[%clk 0:03:06.1]} 13... Ne5 {[%clk 0:03:01]} 14.
Nd4 {[%clk 0:03:06.1]} 14... Nc6 {[%clk 0:02:59.7]} 15. b4 {[%clk 0:03:00.3]}
15... Bb6 {[%clk 0:02:55.5]} 16. Bf3 {[%clk 0:02:48.4]} 16... Rac8 {[%clk
0:02:46.9]} 17. Bb2 {[%clk 0:02:44.4]} 17... a5 {[%clk 0:02:19.1]} 18. Bxc6
{[%clk 0:02:40.3]} 18... Bxc6 {[%clk 0:02:06]} 19. Nxc6 {[%clk 0:02:35.3]} 19...
Rxc6 {[%clk 0:02:06.9]} 20. Qb3 {[%clk 0:02:31.2]} 20... Ng4 {[%clk 0:01:46.1]}
21. h3 {[%clk 0:02:25.2]} 21... Nxf2 {[%clk 0:01:22]} 22. Rxf2 {[%clk
0:01:46.4]} 22... Bxe3 {[%clk 0:01:20.6]} 23. Rf1 {[%clk 0:01:47.1]} 23... Rf6
{[%clk 0:01:01.1]} 24. Nd1 {[%clk 0:01:16.6]} 24... Bxf2+ {[%clk 0:00:19.1]} 25.
Nxf2 {[%clk 0:01:17]} 25... Rf5 {[%clk 0:00:16]} 26. Qc3 {[%clk 0:01:13.8]}
26... Qg5 {[%clk 0:00:14.9]} 27. Re1 {[%clk 0:00:52.5]} 27... h6 {[%clk
0:00:14.3]} 28. Ne4 {[%clk 0:00:49.6]} 28... Qg6 {[%clk 0:00:12.7]} 29. bxa5
{[%clk 0:00:45.1]} 29... Kh7 {[%clk 0:00:11.3]} 30. Kh2 {[%clk 0:00:24.9]} 30...
Rf4 {[%clk 0:00:11.1]} 31. Qe3 {[%clk 0:00:23.6]} 31... Qf5 {[%clk 0:00:08.6]}
32. Ng3 {[%clk 0:00:21.5]} 32... Qg5 {[%clk 0:00:08.9]} 33. Be5 {[%clk
0:00:20.5]} 33... Rf5 {[%clk 0:00:05.5]} 34. Nxf5 {[%clk 0:00:20.1]} 34... Qxf5
{[%clk 0:00:06.4]} 35. Bg3 {[%clk 0:00:20]} 35... Rd5 {[%clk 0:00:05.6]} 36. Qe4
{[%clk 0:00:20.1]} 36... Qxe4 {[%clk 0:00:04.9]} 37. Rxe4 {[%clk 0:00:21]} 37...
Rxa5 {[%clk 0:00:05.2]} 38. a4 {[%clk 0:00:21.5]} 38... b5 {[%clk 0:00:05]} 39.
Re5 {[%clk 0:00:19]} 39... Rxa4 {[%clk 0:00:04.9]} 40. Rxb5 {[%clk 0:00:19.7]}
40... Kg6 {[%clk 0:00:04.2]} 41. Rb6+ {[%clk 0:00:20]} 41... f6 {[%clk
0:00:04.1]} 42. Rb7 {[%clk 0:00:20.7]} 42... Rc4 {[%clk 0:00:03.1]} 43. Bd6
{[%clk 0:00:21]} 43... Rc8 {[%clk 0:00:03.1]} 44. Kg3 {[%clk 0:00:21.6]} 44...
Rg8 {[%clk 0:00:02.4]} 45. Rb8 {[%clk 0:00:21.2]} 45... Rxb8 {[%clk 0:00:01.7]}
46. Bxb8 {[%clk 0:00:22.1]} 46... Kf5 {[%clk 0:00:00.7]} 47. Kf3 {[%clk
0:00:22.5]} 47... Kg5 {[%clk 0:00:00.3]} 48. Bf4+ {[%clk 0:00:21.9]} 48... Kg6
{[%clk 0:00:01.2]} 49. Ke4 {[%clk 0:00:22.1]} 49... Kf7 {[%clk 0:00:02.1]} 50.
Kd5 {[%clk 0:00:22.4]} 50... Kg6 {[%clk 0:00:03]} 51. Ke6 {[%clk 0:00:23]} 51...
Kh5 {[%clk 0:00:03]} 52. Kf5 {[%clk 0:00:22]} 52... g5 {[%clk 0:00:02.9]} 53.
Bg3 {[%clk 0:00:20.9]} 53... g4 {[%clk 0:00:03.2]} 54. hxg4# {[%clk 0:00:21.8]}
1-0

[Event "Late-Titled-Tuesday-Blitz-April-30-2024"]
[Site "Chess.com"]
[Date "2024.04.30"]
[Round "7"]
[White "ab-lsv"]
[Black "WildTricks"]
[Result "1-0"]
[WhiteElo "2401"]
[BlackElo "2687"]
[TimeControl "180+1"]
[EndTime "15:17:58 PDT"]
[Termination "ab-lsv won on time"]

1. d4 {[%clk 0:02:59.4]} 1... Nf6 {[%clk 0:03:00.2]} 2. c4 {[%clk 0:02:59.7]}
2... e6 {[%clk 0:03:00.8]} 3. Nc3 {[%clk 0:03:00]} 3... Bb4 {[%clk 0:02:57.9]}
4. Qc2 {[%clk 0:03:00.4]} 4... b6 {[%clk 0:02:56.3]} 5. e4 {[%clk 0:03:00.4]}
5... c5 {[%clk 0:02:54.7]} 6. d5 {[%clk 0:03:00.2]} 6... Qe7 {[%clk 0:02:53.3]}
7. Be2 {[%clk 0:02:36.8]} 7... exd5 {[%clk 0:02:51.9]} 8. exd5 {[%clk
0:02:37.1]} 8... d6 {[%clk 0:02:52.2]} 9. Nf3 {[%clk 0:02:32.2]} 9... O-O {[%clk
0:02:51.4]} 10. O-O {[%clk 0:02:30.3]} 10... Bxc3 {[%clk 0:02:49.8]} 11. bxc3
{[%clk 0:02:29.8]} 11... Bf5 {[%clk 0:02:48.9]} 12. Qxf5 {[%clk 0:02:23.9]}
12... Qxe2 {[%clk 0:02:47.9]} 13. Bf4 {[%clk 0:01:55.8]} 13... Rd8 {[%clk
0:02:42.5]} 14. Nd2 {[%clk 0:01:42.8]} 14... Qh5 {[%clk 0:02:27.9]} 15. Qd3
{[%clk 0:01:33.6]} 15... Qg4 {[%clk 0:02:14.7]} 16. Bg3 {[%clk 0:01:26]} 16...
Nh5 {[%clk 0:02:02.9]} 17. h3 {[%clk 0:01:23.7]} 17... Qg5 {[%clk 0:01:54.7]}
18. Ne4 {[%clk 0:01:09.4]} 18... Qg6 {[%clk 0:01:53.7]} 19. Bh2 {[%clk
0:01:08.7]} 19... Na6 {[%clk 0:01:41.6]} 20. Rae1 {[%clk 0:01:02.4]} 20... Nc7
{[%clk 0:01:33]} 21. a4 {[%clk 0:01:00.7]} 21... Ne8 {[%clk 0:01:14.8]} 22. f4
{[%clk 0:00:51.8]} 22... h6 {[%clk 0:01:03.2]} 23. f5 {[%clk 0:00:51.2]} 23...
Qh7 {[%clk 0:01:01.7]} 24. Qf3 {[%clk 0:00:39.3]} 24... Nhf6 {[%clk 0:00:59.9]}
25. Nxf6+ {[%clk 0:00:24]} 25... Nxf6 {[%clk 0:01:00.8]} 26. Re7 {[%clk
0:00:24]} 26... h5 {[%clk 0:00:56.6]} 27. Rfe1 {[%clk 0:00:21.5]} 27... h4
{[%clk 0:00:35.7]} 28. Qf4 {[%clk 0:00:20.6]} 28... Qh5 {[%clk 0:00:33.6]} 29.
Kh1 {[%clk 0:00:19.8]} 29... Kf8 {[%clk 0:00:18.6]} 30. Qf2 {[%clk 0:00:18]}
30... Qg5 {[%clk 0:00:14.9]} 31. Qf3 {[%clk 0:00:12.7]} 31... Nh5 {[%clk
0:00:09.4]} 32. R7e4 {[%clk 0:00:05.1]} 32... Nf6 {[%clk 0:00:06.7]} 33. Re7
{[%clk 0:00:04.6]} 33... Qd2 {[%clk 0:00:02.7]} 34. Bf4 {[%clk 0:00:01.1]} 34...
Qc2 {[%clk 0:00:00.9]} 35. Bg5 {[%clk 0:00:01.2]} 1-0

[Event "Late-Titled-Tuesday-Blitz-April-30-2024"]
[Site "Chess.com"]
[Date "2024.04.30"]
[Round "7"]
[White "CrushingKings"]
[Black "Anton_Demchenko"]
[Result "1-0"]
[WhiteElo "2622"]
[BlackElo "2889"]
[TimeControl "180+1"]
[EndTime "15:18:01 PDT"]
[Termination "CrushingKings won by resignation"]

1. Nf3 {[%clk 0:02:50.3]} 1... Nf6 {[%clk 0:02:59]} 2. g3 {[%clk 0:02:50.2]}
2... g6 {[%clk 0:02:59.2]} 3. b3 {[%clk 0:02:49.8]} 3... Bg7 {[%clk 0:03:00.1]}
4. Bb2 {[%clk 0:02:49.7]} 4... O-O {[%clk 0:03:01]} 5. Bg2 {[%clk 0:02:49.6]}
5... d6 {[%clk 0:03:01.7]} 6. d4 {[%clk 0:02:49.2]} 6... Nbd7 {[%clk 0:03:01.7]}
7. O-O {[%clk 0:02:49]} 7... Re8 {[%clk 0:02:58.8]} 8. c4 {[%clk 0:02:48.7]}
8... e5 {[%clk 0:02:57.5]} 9. dxe5 {[%clk 0:02:49.6]} 9... Ng4 {[%clk 0:02:58]}
10. Nc3 {[%clk 0:02:49.3]} 10... dxe5 {[%clk 0:02:58.3]} 11. Qc2 {[%clk
0:02:41.4]} 11... e4 {[%clk 0:02:56.8]} 12. Ne1 {[%clk 0:02:33.8]} 12... f5
{[%clk 0:02:56.7]} 13. Nd5 {[%clk 0:02:31.7]} 13... Bxb2 {[%clk 0:02:46]} 14.
Qxb2 {[%clk 0:02:31.7]} 14... c6 {[%clk 0:02:46.5]} 15. Nf4 {[%clk 0:02:28.8]}
15... Nde5 {[%clk 0:02:44.5]} 16. Nc2 {[%clk 0:02:27.2]} 16... Qf6 {[%clk
0:02:39.3]} 17. Qd4 {[%clk 0:02:15.1]} 17... Rd8 {[%clk 0:02:29.5]} 18. Qc5
{[%clk 0:02:10.5]} 18... b6 {[%clk 0:02:29.6]} 19. Qb4 {[%clk 0:02:08.1]} 19...
g5 {[%clk 0:02:25.4]} 20. f3 {[%clk 0:01:54.3]} 20... gxf4 {[%clk 0:02:16.5]}
21. fxg4 {[%clk 0:01:53.7]} 21... c5 {[%clk 0:02:00.3]} 22. Qc3 {[%clk
0:01:37.4]} 22... Nxg4 {[%clk 0:01:49.8]} 23. Qxf6 {[%clk 0:01:36.6]} 23... Nxf6
{[%clk 0:01:50.7]} 24. Rxf4 {[%clk 0:01:33.4]} 24... Nh5 {[%clk 0:01:16.2]} 25.
Rf2 {[%clk 0:01:27.4]} 25... Be6 {[%clk 0:01:11.7]} 26. Ne3 {[%clk 0:01:23.7]}
26... Ng7 {[%clk 0:01:10.8]} 27. Bh3 {[%clk 0:01:04]} 27... Rd2 {[%clk
0:01:09.8]} 28. Nxf5 {[%clk 0:00:47.8]} 28... Bxf5 {[%clk 0:01:09.5]} 29. Bxf5
{[%clk 0:00:47.7]} 29... e3 {[%clk 0:00:56.9]} 30. Rf3 {[%clk 0:00:47.9]} 30...
Nxf5 {[%clk 0:00:45.3]} 31. Rxf5 {[%clk 0:00:48]} 31... Rxe2 {[%clk 0:00:46]}
32. Raf1 {[%clk 0:00:48.4]} 32... Re8 {[%clk 0:00:41.4]} 33. Rg5+ {[%clk
0:00:47.8]} 33... Kh8 {[%clk 0:00:41.9]} 34. Rf7 {[%clk 0:00:38.1]} 34... Rd8
{[%clk 0:00:22.4]} 35. Rd5 {[%clk 0:00:19.1]} 35... Rxd5 {[%clk 0:00:13.6]} 36.
cxd5 {[%clk 0:00:19.4]} 36... Rxa2 {[%clk 0:00:10.9]} 37. d6 {[%clk 0:00:19.1]}
37... Kg8 {[%clk 0:00:06.1]} 38. d7 {[%clk 0:00:14.9]} 38... Rd2 {[%clk
0:00:02.1]} 39. Re7 {[%clk 0:00:15.1]} 39... e2 {[%clk 0:00:01.7]} 40. Kf2
{[%clk 0:00:12.9]} 40... Kf8 {[%clk 0:00:00.9]} 41. Re8+ {[%clk 0:00:12.6]}
41... Kf7 {[%clk 0:00:01.6]} 42. d8=Q {[%clk 0:00:13.4]} 42... e1=Q+ {[%clk
0:00:02.3]} 43. Kxe1 {[%clk 0:00:13.1]} 43... Rxd8 {[%clk 0:00:02.2]} 44. Rxd8
{[%clk 0:00:13.5]} 44... Ke6 {[%clk 0:00:03.1]} 45. Ra8 {[%clk 0:00:11.9]} 45...
Kd5 {[%clk 0:00:03.3]} 46. Rxa7 {[%clk 0:00:12.1]} 46... h5 {[%clk 0:00:03.8]}
47. Kd2 {[%clk 0:00:11.4]} 47... b5 {[%clk 0:00:04.1]} 48. Rh7 {[%clk
0:00:11.7]} 1-0

[Event "Late-Titled-Tuesday-Blitz-April-30-2024"]
[Site "Chess.com"]
[Date "2024.04.30"]
[Round "7"]
[White "rdarruda"]
[Black "shrek4life02"]
[Result "1-0"]
[WhiteElo "2558"]
[BlackElo "2704"]
[TimeControl "180+1"]
[EndTime "15:18:04 PDT"]
[Termination "rdarruda won by checkmate"]

1. d4 {[%clk 0:02:47.2]} 1... e6 {[%clk 0:03:00.9]} 2. e4 {[%clk 0:02:46.6]}
2... d5 {[%clk 0:03:01.1]} 3. Nc3 {[%clk 0:02:46.4]} 3... Nf6 {[%clk 0:03:01.1]}
4. Bg5 {[%clk 0:02:45.5]} 4... Bb4 {[%clk 0:02:59.3]} 5. Ne2 {[%clk 0:02:42.7]}
5... dxe4 {[%clk 0:02:56.9]} 6. a3 {[%clk 0:02:41.8]} 6... Be7 {[%clk 0:02:53]}
7. Bxf6 {[%clk 0:02:40.8]} 7... gxf6 {[%clk 0:02:53.9]} 8. Nxe4 {[%clk
0:02:39.7]} 8... f5 {[%clk 0:02:54.8]} 9. N4g3 {[%clk 0:02:37.3]} 9... h5 {[%clk
0:02:52.9]} 10. Nf4 {[%clk 0:02:32.3]} 10... h4 {[%clk 0:02:45.9]} 11. Nge2
{[%clk 0:02:31.8]} 11... b6 {[%clk 0:02:35.2]} 12. Nc3 {[%clk 0:02:06.5]} 12...
Bb7 {[%clk 0:02:34.5]} 13. Bb5+ {[%clk 0:02:05.7]} 13... Kf8 {[%clk 0:02:31.8]}
14. f3 {[%clk 0:01:56.3]} 14... Qd6 {[%clk 0:02:19.7]} 15. Nce2 {[%clk
0:01:52.3]} 15... Nd7 {[%clk 0:02:02]} 16. Bxd7 {[%clk 0:01:45.8]} 16... Qxd7
{[%clk 0:02:02.1]} 17. O-O {[%clk 0:01:45.4]} 17... h3 {[%clk 0:01:45]} 18. Nxh3
{[%clk 0:01:40.3]} 18... Rxh3 {[%clk 0:01:29.1]} 19. gxh3 {[%clk 0:01:39.7]}
19... Bg5 {[%clk 0:01:29.9]} 20. Qd3 {[%clk 0:01:21.5]} 20... Ke7 {[%clk
0:01:29]} 21. Kh1 {[%clk 0:01:19.9]} 21... Rh8 {[%clk 0:01:27.9]} 22. Ng1 {[%clk
0:01:19.3]} 22... Rh4 {[%clk 0:01:23.3]} 23. c3 {[%clk 0:01:17.5]} 23... c5
{[%clk 0:01:22.5]} 24. Rad1 {[%clk 0:01:15.9]} 24... cxd4 {[%clk 0:01:17.5]} 25.
cxd4 {[%clk 0:01:16.8]} 25... Kf8 {[%clk 0:01:06.2]} 26. Rf2 {[%clk 0:01:04.3]}
26... Bf6 {[%clk 0:01:02.3]} 27. Qe3 {[%clk 0:00:56.3]} 27... Qd5 {[%clk
0:00:46.8]} 28. Rfd2 {[%clk 0:00:52.3]} 28... Rh5 {[%clk 0:00:42.5]} 29. Qf4
{[%clk 0:00:50.6]} 29... Rg5 {[%clk 0:00:28.7]} 30. Qb8+ {[%clk 0:00:49.6]}
30... Kg7 {[%clk 0:00:26]} 31. Rg2 {[%clk 0:00:44.1]} 31... Rxg2 {[%clk
0:00:20.6]} 32. Kxg2 {[%clk 0:00:43.2]} 32... Qb3 {[%clk 0:00:21.3]} 33. Rd2
{[%clk 0:00:40]} 33... Bd5 {[%clk 0:00:21.7]} 34. Qg3+ {[%clk 0:00:36.7]} 34...
Kf8 {[%clk 0:00:22]} 35. Qb8+ {[%clk 0:00:36.5]} 35... Kg7 {[%clk 0:00:22.7]}
36. Qg3+ {[%clk 0:00:36.3]} 36... Kh7 {[%clk 0:00:23.3]} 37. Qc7 {[%clk
0:00:34.2]} 37... Kg6 {[%clk 0:00:15.3]} 38. Qc3 {[%clk 0:00:34]} 38... Qb5
{[%clk 0:00:12.6]} 39. Kh1 {[%clk 0:00:32.1]} 39... Qf1 {[%clk 0:00:11.3]} 40.
Rg2+ {[%clk 0:00:31.9]} 40... Kh7 {[%clk 0:00:11.1]} 41. Qe3 {[%clk 0:00:29.5]}
41... Qd1 {[%clk 0:00:05.9]} 42. Rd2 {[%clk 0:00:22.1]} 42... Qf1 {[%clk
0:00:05.9]} 43. Rf2 {[%clk 0:00:21.6]} 43... Qd1 {[%clk 0:00:06.1]} 44. Rd2
{[%clk 0:00:21.8]} 44... Qf1 {[%clk 0:00:06.6]} 45. Rf2 {[%clk 0:00:19.7]} 45...
Qc4 {[%clk 0:00:07.2]} 46. Rd2 {[%clk 0:00:19]} 46... Qc7 {[%clk 0:00:05.2]} 47.
Rg2 {[%clk 0:00:17.8]} 47... Qc4 {[%clk 0:00:04]} 48. Qf4 {[%clk 0:00:17.2]}
48... Qxd4 {[%clk 0:00:03.9]} 49. Qg3 {[%clk 0:00:17.1]} 49... Kh6 {[%clk
0:00:02.5]} 50. Qg8 {[%clk 0:00:16.7]} 50... Qf4 {[%clk 0:00:01.9]} 51. Qxf7
{[%clk 0:00:15.8]} 51... Bxf3 {[%clk 0:00:02.1]} 52. Qg6# {[%clk 0:00:15.4]} 1-0